bitfinex/quotes_BTCUSD_20241128
["timestamp","ask_amount","ask_price","bid_price","bid_amount"]
[1732804024348,0.209379,95521.0,95516.0,0.0065459]
[1732804024567,0.209379,95521.0,95514.0,0.10284521]
[1732804024568,0.104695,95515.0,95514.0,0.10284521]
[1732804024809,0.104695,95515.0,95514.0,0.11986528]
[1732804025034,0.001,95516.0,95515.0,0.0075]
[1732804025286,0.105694,95516.0,95515.0,0.061167]
[1732804025506,0.105694,95516.0,95515.0,0.01702007]
[1732804025949,0.104694,95516.0,95515.0,0.01702007]
[1732804026383,0.105694,95516.0,95515.0,0.02502007]
[1732804027560,0.115694,95516.0,95515.0,0.02502007]
[1732804027776,0.1180105,95516.0,95515.0,0.02502007]
[1732804028216,0.1180105,95516.0,95515.0,0.02502252]
[1732804028684,0.115694,95516.0,95515.0,0.008]
[1732804028687,0.001,95516.0,95515.0,0.0145476]
[1732804028917,0.001,95516.0,95515.0,0.24498855]
[1732804029160,0.001,95516.0,95515.0,0.25808163]
[1732804029379,0.001,95516.0,95515.0,0.26307566]
[1732804030802,0.001,95516.0,95515.0,0.14528901]
[1732804031246,0.001,95516.0,95515.0,0.24998401]
[1732804031462,0.001,95516.0,95515.0,0.24998429]
[1732804031952,0.001,95516.0,95515.0,0.26307567]
[1732804032184,0.001,95516.0,95515.0,0.15838067]
[1732804032429,0.001,95516.0,95515.0,0.26307567]
[1732804032898,0.001,95516.0,95515.0,0.24998429]
[1732804034521,0.01,95544.0,95534.0,0.104674]
[1732804034747,0.209281,95565.0,95534.0,0.22453863]
[1732804034975,0.09375954,95570.0,95535.0,0.255447]
[1732804034976,0.209286,95563.0,95535.0,0.255447]
[1732804035214,0.01,95564.0,95550.0,0.00984901]
[1732804035215,0.114648,95559.0,95550.0,0.00984901]
[1732804035447,0.104654,95553.0,95551.0,0.01701942]
[1732804035692,0.209301,95556.0,95552.0,0.01701942]
[1732804035919,0.209294,95559.0,95553.0,0.01701942]
[1732804036162,0.104656,95551.0,95550.0,0.01308709]
[1732804036417,0.0023155,95554.0,95550.0,0.01701409]
[1732804036635,0.001,95553.0,95551.0,0.02301409]
[1732804036855,0.001,95553.0,95552.0,0.04006572]
[1732804037070,0.001,95553.0,95552.0,0.01701409]
[1732804037537,0.001,95553.0,95552.0,0.1198593]
[1732804037778,0.104653,95553.0,95552.0,0.01701409]
[1732804038251,0.104653,95553.0,95552.0,0.02241448]
[1732804038722,0.0017288,95557.0,95552.0,0.01701409]
[1732804038962,0.0017288,95557.0,95545.0,0.209323]
[1732804038963,0.0017288,95557.0,95553.0,0.12166709]
[1732804039197,0.0017288,95557.0,95554.0,0.01701409]
[1732804039438,0.0017288,95557.0,95550.0,0.01308709]
[1732804039719,0.104656,95551.0,95550.0,0.10884521]
[1732804039929,0.104656,95551.0,95550.0,0.12585861]
[1732804040156,0.104653,95554.0,95550.0,0.12585861]
[1732804040396,0.0017288,95557.0,95551.0,0.0170134]
[1732804040397,0.209301,95556.0,95551.0,0.0170134]
[1732804040626,0.104652,95554.0,95553.0,0.007]
[1732804040874,0.104652,95554.0,95553.0,0.0170134]
[1732804041112,0.0017288,95557.0,95553.0,0.0170134]
[1732804041388,0.0017288,95557.0,95552.0,0.01450395]
[1732804041389,0.104653,95553.0,95552.0,0.01450395]
[1732804041631,0.104653,95553.0,95552.0,0.03151806]
[1732804042993,0.001,95554.0,95552.0,0.03151806]
[1732804042994,0.105652,95554.0,95552.0,0.03151806]
[1732804043206,0.104653,95553.0,95552.0,0.01450395]
[1732804043453,0.104653,95553.0,95552.0,0.03151814]
[1732804044210,0.104653,95553.0,95552.0,0.02201419]
[1732804044211,0.11869771,95553.0,95552.0,0.02201419]
[1732804044459,0.11869797,95553.0,95552.0,0.02201419]
[1732804044682,0.1163822,95553.0,95552.0,0.02601495]
[1732804044903,0.1173822,95553.0,95552.0,0.01554424]
[1732804045136,0.11969791,95553.0,95552.0,0.01554424]
[1732804045658,0.11969791,95553.0,95552.0,0.009]
[1732804045875,0.22254312,95553.0,95552.0,0.009]
[1732804046093,0.30342741,95553.0,95552.0,0.009]
[1732804046327,0.30342741,95553.0,95552.0,0.014]
[1732804046807,0.104672,95536.0,95535.0,0.0008646]
[1732804047034,0.11698802,95536.0,95535.0,0.0008646]
[1732804048427,0.11698802,95536.0,95535.0,0.0048646]
[1732804048925,0.24283323,95536.0,95535.0,0.0048646]
[1732804049184,0.39051721,95536.0,95535.0,0.0048646]
[1732804049419,0.39051721,95536.0,95489.0,0.000865]
[1732804049420,0.104723,95490.0,95489.0,0.000865]
[1732804049646,0.114723,95490.0,95489.0,0.000865]
[1732804049901,0.114723,95490.0,95489.0,0.00741328]
[1732804049902,0.11704029,95490.0,95489.0,0.00741328]
[1732804050818,0.11804029,95490.0,95489.0,0.01641328]
[1732804051042,0.11804029,95490.0,95489.0,0.02689077]
[1732804051517,0.11704029,95490.0,95489.0,0.01989077]
[1732804051799,0.11704029,95490.0,95489.0,0.02189077]
[1732804052264,0.11704029,95490.0,95489.0,0.01141328]
[1732804052500,0.11704029,95490.0,95489.0,0.004865]
[1732804053406,0.114723,95490.0,95489.0,0.004865]
[1732804053624,0.11704031,95490.0,95489.0,0.002865]
[1732804053848,0.11704031,95490.0,95489.0,0.000865]
[1732804054314,0.11704031,95490.0,95489.0,0.001865]
[1732804054987,0.11704031,95490.0,95489.0,0.000865]
[1732804055646,0.49438552,95490.0,95489.0,0.000865]
[1732804055885,0.53506821,95490.0,95489.0,1e-06]
[1732804056113,0.52506821,95490.0,95489.0,1e-06]
[1732804056337,0.53506821,95490.0,95489.0,1e-06]
[1732804056797,0.54659463,95490.0,95489.0,1e-06]
[1732804057016,0.54659463,95490.0,95472.0,0.0008652]
[1732804057017,0.114741,95473.0,95472.0,0.0008652]
[1732804057234,0.21990402,95473.0,95472.0,0.0008652]
[1732804057463,0.21758621,95473.0,95472.0,0.0008652]
[1732804058249,0.114741,95473.0,95472.0,0.0008652]
[1732804058752,0.10705881,95473.0,95472.0,0.0008652]
[1732804059011,0.114741,95473.0,95472.0,0.00741523]
[1732804059216,0.114741,95473.0,95472.0,0.00741519]
[1732804059707,0.1170584,95473.0,95472.0,0.00741519]
[1732804059956,0.009,95490.0,95472.0,0.0008652]
[1732804060199,0.0023174,95489.0,95472.0,0.0008652]
[1732804060696,0.106741,95473.0,95472.0,0.0008652]
[1732804060927,0.104739,95475.0,95472.0,0.11026017]
[1732804061167,0.10474,95474.0,95473.0,0.10284521]
[1732804062147,0.114741,95473.0,95472.0,0.0018652]
[1732804062387,0.114741,95473.0,95472.0,0.0008652]
[1732804062878,0.20948,95475.0,95472.0,0.0008652]
[1732804062879,0.104733,95481.0,95474.0,0.10474]
[1732804063121,0.209462,95483.0,95472.0,0.10371041]
[1732804063122,0.01,95482.0,95475.0,0.14476565]
[1732804063358,0.209465,95481.0,95475.0,0.10284521]
[1732804063598,0.209433,95496.0,95481.0,0.209464]
[1732804063840,0.209399,95512.0,95489.0,0.104724]
[1732804063841,0.0098932,95495.0,95489.0,0.104724]
[1732804064096,0.20938,95520.0,95492.0,0.209441]
[1732804064336,0.01,95517.0,95494.0,0.15]
[1732804064586,0.209415,95504.0,95495.0,0.10939367]
[1732804064836,0.01,95505.0,95495.0,0.10939367]
[1732804064837,0.01,95505.0,95496.0,0.00654846]
[1732804065095,0.104714,95498.0,95497.0,0.10284521]
[1732804065348,0.20937,95525.0,95478.0,0.104735]
[1732804065349,0.104729,95485.0,95478.0,0.104735]
[1732804065595,0.104719,95493.0,95492.0,0.001]
[1732804066075,0.10703592,95493.0,95492.0,0.001]
[1732804066819,0.10703592,95493.0,95479.0,0.10284521]
[1732804066820,0.104732,95481.0,95479.0,0.10284521]
[1732804067054,0.104732,95481.0,95480.0,0.02075852]
[1732804067273,0.104732,95481.0,95480.0,0.10284521]
[1732804067740,0.104732,95481.0,95480.0,0.10939443]
[1732804068524,0.209452,95487.0,95480.0,0.11539443]
[1732804068745,0.2275243,95520.0,95481.0,0.10939443]
[1732804068979,0.104726,95487.0,95482.0,0.03953556]
[1732804069213,0.00231704,95508.0,95483.0,0.00654922]
[1732804069454,0.0099411,95502.0,95484.0,0.00654922]
[1732804069690,0.104717,95495.0,95488.0,0.104724]
[1732804069932,0.0099411,95502.0,95480.0,0.011]
[1732804069933,0.104723,95490.0,95489.0,0.10284521]
[1732804070168,0.104723,95490.0,95489.0,0.0008646]
[1732804070414,0.104723,95490.0,95489.0,0.00741374]
[1732804071376,0.104723,95490.0,95489.0,0.01241374]
[1732804071615,0.01,95497.0,95489.0,0.12080812]
[1732804071873,0.104715,95497.0,95490.0,0.14739239]
[1732804072135,0.01,95504.0,95494.0,0.104718]
[1732804072365,0.01,95504.0,95495.0,0.10284521]
[1732804072608,0.104716,95497.0,95495.0,0.10284521]
[1732804072853,0.104716,95497.0,95496.0,0.01047803]
[1732804073086,0.104716,95497.0,95496.0,0.14072397]
[1732804073315,0.104716,95497.0,95496.0,0.14072399]
[1732804073552,0.104716,95497.0,95496.0,0.11332326]
[1732804073780,0.104716,95497.0,95496.0,0.11987253]
[1732804074234,0.104716,95497.0,95496.0,0.1297202]
[1732804074459,0.104716,95497.0,95496.0,0.02002732]
[1732804074747,0.10703291,95497.0,95496.0,0.02002732]
[1732804074964,0.11703291,95497.0,95496.0,0.02002732]
[1732804075617,0.114716,95497.0,95496.0,0.02002732]
[1732804076057,0.114716,95497.0,95496.0,0.003]
[1732804076281,0.114716,95497.0,95496.0,0.02002598]
[1732804077930,0.21987852,95497.0,95496.0,0.02002598]
[1732804078170,0.29756121,95497.0,95496.0,0.02002598]
[1732804078870,0.29756121,95497.0,95496.0,0.00954845]
[1732804079359,0.29756121,95497.0,95496.0,4.5e-07]
[1732804079589,0.114723,95490.0,95489.0,0.0008646]
[1732804079852,0.21988587,95490.0,95489.0,0.0008646]
[1732804080077,0.21756821,95490.0,95489.0,0.0008646]
[1732804080535,0.21756821,95490.0,95489.0,0.01134413]
[1732804080998,0.21756821,95490.0,95489.0,0.0008646]
[1732804081225,0.22156821,95490.0,95489.0,0.0008646]
[1732804081479,0.118723,95490.0,95489.0,0.0008646]
[1732804081719,0.12204048,95490.0,95489.0,0.0008646]
[1732804082692,0.12204048,95490.0,95489.0,0.01134541]
[1732804082908,0.12204048,95490.0,95489.0,0.02444582]
[1732804084742,0.119723,95490.0,95489.0,0.02444582]
[1732804085026,0.005,95490.0,95489.0,0.02444582]
[1732804085263,0.109723,95490.0,95489.0,0.0318204]
[1732804085481,0.005,95490.0,95489.0,0.0318204]
[1732804085932,0.01,95493.0,95489.0,0.0318204]
[1732804086156,0.104721,95492.0,95490.0,0.02358122]
[1732804086389,0.01,95496.0,95491.0,0.02358122]
[1732804086612,0.01,95496.0,95489.0,0.00823918]
[1732804086613,0.104723,95490.0,95489.0,0.00823918]
[1732804086854,0.104723,95490.0,95489.0,0.03181286]
[1732804087085,0.104723,95490.0,95489.0,0.03281286]
[1732804087319,0.104723,95490.0,95489.0,0.03181286]
[1732804087593,0.104723,95490.0,95489.0,0.03381286]
[1732804088038,0.104723,95490.0,95489.0,0.03181286]
[1732804088257,0.104723,95490.0,95489.0,0.03681286]
[1732804088502,0.001,95490.0,95489.0,0.04381286]
[1732804090148,0.105723,95490.0,95489.0,0.04381286]
[1732804090406,0.115723,95490.0,95489.0,0.03643828]
[1732804090628,0.115723,95490.0,95489.0,0.02334179]
[1732804091389,0.115723,95490.0,95489.0,0.02334313]
[1732804091575,0.115723,95490.0,95489.0,0.01441373]
[1732804091793,0.114723,95490.0,95489.0,0.00941373]
[1732804092241,0.114723,95490.0,95489.0,0.01141373]
[1732804092983,0.11704007,95490.0,95489.0,0.01141373]
[1732804093408,0.11704007,95490.0,95489.0,0.0048646]
[1732804094043,0.11704007,95490.0,95489.0,0.0028646]
[1732804094904,0.11704007,95490.0,95489.0,0.0008646]
[1732804095120,0.11704032,95490.0,95489.0,0.0028646]
[1732804095551,0.11704032,95490.0,95489.0,0.00941415]
[1732804095756,0.11704032,95490.0,95489.0,0.00741415]
[1732804095974,0.12004032,95490.0,95489.0,0.00741415]
[1732804096191,0.11704032,95490.0,95489.0,0.00741415]
[1732804096610,0.11704032,95490.0,95489.0,0.0008646]
[1732804097723,0.11904032,95490.0,95489.0,0.0008646]
[1732804101259,0.11904036,95490.0,95489.0,0.0008646]
[1732804101686,0.11904036,95490.0,95489.0,0.00741425]
[1732804103953,0.002,95490.0,95489.0,0.00741425]
[1732804104188,0.002,95490.0,95489.0,0.01789264]
[1732804104398,0.002,95490.0,95489.0,0.23486111]
[1732804104828,0.002,95490.0,95489.0,0.36991628]
[1732804105057,0.002,95490.0,95489.0,0.38794108]
[1732804105319,0.00373,95490.0,95489.0,0.37091628]
[1732804105766,0.00373,95490.0,95489.0,0.58278898]
[1732804105769,0.00173,95490.0,95489.0,0.59326523]
[1732804106002,0.00173,95490.0,95489.0,0.62688312]
[1732804106246,0.00173,95490.0,95489.0,0.73560712]
[1732804106477,0.00173,95490.0,95489.0,0.87249581]
[1732804106697,0.00173,95490.0,95489.0,0.74055331]
[1732804106988,0.00173,95490.0,95489.0,0.62682931]
[1732804107215,0.00173,95490.0,95489.0,0.63282931]
[1732804107461,0.00173,95490.0,95489.0,0.77369714]
[1732804107698,0.00173,95490.0,95489.0,0.76769714]
[1732804107934,0.00173,95490.0,95489.0,0.78366864]
[1732804108161,0.00173,95490.0,95489.0,0.41997716]
[1732804108393,0.00173,95490.0,95489.0,0.2961333]
[1732804108607,0.00173,95490.0,95489.0,0.39004702]
[1732804108831,0.00173,95490.0,95489.0,0.2961333]
[1732804109058,0.00173,95490.0,95489.0,0.1461333]
[1732804109278,0.00173,95490.0,95489.0,0.2418573]
[1732804109730,0.00173,95490.0,95489.0,0.2508573]
[1732804110183,0.00173,95490.0,95489.0,0.34476679]
[1732804110426,0.00173,95490.0,95489.0,0.2508573]
[1732804110645,0.00173,95490.0,95489.0,0.3447744]
[1732804110911,0.00173,95490.0,95489.0,0.2508573]
[1732804111127,0.00173,95490.0,95489.0,0.38124498]
[1732804111345,0.00173,95490.0,95489.0,0.39172126]
[1732804111565,0.00173,95490.0,95489.0,0.25085702]
[1732804112024,0.00173,95490.0,95489.0,0.39172126]
[1732804112495,0.00173,95496.0,95489.0,0.50323627]
[1732804112713,0.00173,95496.0,95495.0,0.11456324]
[1732804112936,0.00173,95496.0,95495.0,0.36803848]
[1732804113181,0.00173,95496.0,95495.0,0.61910514]
[1732804113505,0.00173,95496.0,95495.0,0.88209655]
[1732804113737,0.00173,95496.0,95495.0,0.53548615]
[1732804113966,0.0017298,95509.0,95508.0,0.104703]
[1732804114208,0.0099028,95527.0,95509.0,0.15]
[1732804114422,0.0099028,95527.0,95526.0,0.104683]
[1732804114662,0.104682,95527.0,95526.0,0.01702394]
[1732804114909,0.01231608,95532.0,95526.0,0.02371633]
[1732804115156,0.01,95532.0,95527.0,0.01702394]
[1732804115392,0.01,95532.0,95528.0,0.01047627]
[1732804115611,0.01,95532.0,95529.0,0.01702394]
[1732804115843,0.01,95532.0,95526.0,0.00669239]
[1732804116077,0.104681,95528.0,95527.0,0.02383052]
[1732804116323,0.0017292,95535.0,95527.0,0.12667573]
[1732804116537,0.0017292,95535.0,95528.0,0.01701883]
[1732804116758,0.0017292,95535.0,95529.0,0.0065457]
[1732804116995,0.0017292,95535.0,95530.0,0.0065457]
[1732804117214,0.0017292,95535.0,95531.0,0.04131951]
[1732804117434,0.209349,95534.0,95532.0,0.01701883]
[1732804117675,0.104681,95528.0,95527.0,0.00781169]
[1732804117887,0.209349,95534.0,95527.0,0.01935759]
[1732804118119,0.209353,95532.0,95527.0,0.005]
[1732804118346,0.104679,95530.0,95528.0,0.00654586]
[1732804118582,0.104679,95530.0,95529.0,0.00654586]
[1732804119032,0.20935,95534.0,95529.0,0.00654586]
[1732804119260,0.104677,95532.0,95530.0,0.00654586]
[1732804119480,0.104677,95532.0,95531.0,0.01871629]
[1732804120198,0.0017292,95535.0,95531.0,0.00654586]
[1732804120429,0.0017292,95535.0,95534.0,0.104674]
[1732804120646,0.0017292,95535.0,95534.0,0.21406507]
[1732804120939,0.0017292,95535.0,95534.0,0.50183766]
[1732804121131,0.0017292,95535.0,95534.0,0.60466912]
[1732804121361,0.0017292,95535.0,95534.0,0.52506912]
[1732804122293,0.0017292,95535.0,95534.0,0.53306912]
[1732804123430,0.0017292,95535.0,95534.0,0.56343489]
[1732804123662,0.0017292,95535.0,95534.0,0.55459907]
[1732804123889,0.0017292,95535.0,95534.0,0.55643489]
[1732804124113,0.0017292,95553.0,95534.0,0.55643489]
[1732804124114,0.0017292,95553.0,95535.0,0.16]
[1732804124350,0.0017292,95553.0,95537.0,0.15]
[1732804124591,0.0017292,95553.0,95539.0,0.15]
[1732804124839,0.0017292,95553.0,95543.0,0.209329]
[1732804125058,0.0017292,95553.0,95548.0,0.104658]
[1732804125298,0.1063832,95553.0,95549.0,0.11986366]
[1732804125555,0.0017292,95553.0,95550.0,0.07087022]
[1732804125811,0.0017292,95553.0,95551.0,0.01701845]
[1732804126074,0.0017292,95553.0,95535.0,0.01565928]
[1732804126075,0.52328,95551.0,95535.0,0.01565928]
[1732804126295,0.10467,95539.0,95536.0,0.01701489]
[1732804126517,0.104664,95544.0,95537.0,0.03056683]
[1732804126758,0.0017292,95553.0,95538.0,0.01701489]
[1732804126980,0.0017292,95553.0,95540.0,0.209336]
[1732804126981,0.104655,95552.0,95540.0,0.209336]
[1732804127200,0.104655,95552.0,95546.0,0.104661]
[1732804127411,0.0017292,95553.0,95548.0,0.004]
[1732804127634,0.104655,95552.0,95549.0,0.01068452]
[1732804127863,0.104656,95551.0,95549.0,0.01722871]
[1732804128112,0.104657,95550.0,95549.0,0.01722871]
[1732804128853,0.10697252,95550.0,95549.0,0.00654419]
[1732804129976,0.418632,95549.0,95534.0,0.01185633]
[1732804130217,0.104673,95535.0,95534.0,0.11470154]
[1732804130753,0.104673,95535.0,95534.0,0.10284521]
[1732804130974,0.0098972,95554.0,95534.0,0.02528452]
[1732804131245,0.0098972,95554.0,95520.0,0.20938]
[1732804131246,0.104678,95531.0,95526.0,0.01184335]
[1732804131484,0.21162587,95552.0,95534.0,0.006]
[1732804131485,0.209344,95537.0,95534.0,0.006]
[1732804131697,0.104673,95535.0,95534.0,0.006]
[1732804131929,0.01190235,95563.0,95534.0,0.006]
[1732804132148,0.104673,95535.0,95534.0,0.01688452]
[1732804132813,0.209312,95551.0,95534.0,0.01688452]
[1732804133034,0.20931,95552.0,95535.0,0.10284521]
[1732804133272,0.104662,95546.0,95535.0,0.10284521]
[1732804133526,0.104662,95546.0,95541.0,0.104666]
[1732804133744,0.104662,95546.0,95542.0,0.10939014]
[1732804133997,0.104663,95545.0,95542.0,0.11986204]
[1732804134264,0.104661,95546.0,95543.0,0.06040443]
[1732804134484,0.104661,95546.0,95544.0,0.01701683]
[1732804134716,0.104661,95546.0,95545.0,0.01701683]
[1732804137420,0.104661,95546.0,95545.0,0.02682296]
[1732804137639,0.104661,95546.0,95545.0,0.02982296]
[1732804138313,0.0017292,95553.0,95545.0,0.13666817]
[1732804138529,0.0017292,95553.0,95549.0,0.0098101]
[1732804138795,0.0017292,95553.0,95550.0,0.0104719]
[1732804139018,0.104661,95546.0,95545.0,0.007]
[1732804139252,0.104661,95546.0,95545.0,0.03710415]
[1732804139721,0.0017292,95553.0,95545.0,0.03310415]
[1732804139944,0.0017292,95553.0,95545.0,0.003]
[1732804139945,0.104661,95546.0,95545.0,0.003]
[1732804140195,0.0017292,95553.0,95545.0,0.003]
[1732804140196,0.0017292,95553.0,95552.0,0.104655]
[1732804140440,0.0017292,95553.0,95552.0,0.13476036]
[1732804140677,0.0017292,95553.0,95552.0,0.23760557]
[1732804141620,0.0017288,95557.0,95556.0,0.25465]
[1732804141838,0.0017288,95557.0,95556.0,0.46597388]
[1732804142092,0.0017282,95593.0,95560.0,0.01]
[1732804142323,0.0017282,95593.0,95562.0,0.15]
[1732804142548,0.0017282,95593.0,95561.0,0.12247914]
[1732804142549,0.104613,95590.0,95583.0,0.10462]
[1732804142782,0.2109492,95593.0,95584.0,0.03010536]
[1732804142998,0.2109492,95593.0,95585.0,0.0645026]
[1732804143238,0.104613,95590.0,95585.0,0.03010536]
[1732804143468,0.0017282,95593.0,95585.0,0.13472336]
[1732804144195,0.0017282,95593.0,95585.0,0.24656857]
[1732804144652,0.0017282,95593.0,95585.0,0.23756857]
[1732804144886,0.0017282,95593.0,95585.0,0.24655402]
[1732804145100,0.0017282,95593.0,95585.0,0.46765822]
[1732804145582,0.0017282,95593.0,95585.0,0.47365822]
[1732804145815,0.0017282,95593.0,95585.0,0.49413349]
[1732804146497,0.0017282,95593.0,95585.0,0.51376828]
[1732804146933,0.0017282,95593.0,95585.0,0.49413349]
[1732804147396,0.0017282,95593.0,95585.0,0.47365822]
[1732804147849,0.0017282,95593.0,95585.0,0.36904022]
[1732804148109,0.0017282,95593.0,95585.0,0.47365822]
[1732804148356,0.0017282,95593.0,95585.0,0.49329301]
[1732804148591,0.0017282,95593.0,95585.0,0.38867501]
[1732804149104,0.104614,95590.0,95586.0,0.15]
[1732804149323,0.0017282,95593.0,95588.0,0.15]
[1732804149543,0.0017282,95593.0,95589.0,0.15257081]
[1732804149755,0.0017282,95593.0,95590.0,0.0497256]
[1732804149972,0.0012278,95592.0,95591.0,0.15257081]
[1732804150867,0.0012278,95592.0,95591.0,0.25718281]
[1732804151078,0.0012278,95592.0,95591.0,0.24767895]
[1732804151306,0.0012278,95592.0,95591.0,0.35929095]
[1732804152041,0.104599,95604.0,95592.0,0.209222]
[1732804152047,0.0017276,95605.0,95593.0,0.20922]
[1732804152265,0.0017276,95605.0,95594.0,0.36178781]
[1732804152482,0.0017276,95605.0,95595.0,0.10364839]
[1732804152483,0.1063246,95605.0,95595.0,0.10364839]
[1732804152699,0.1063246,95605.0,95599.0,0.104603]
[1732804152700,0.104598,95604.0,95599.0,0.104603]
[1732804152912,0.104598,95604.0,95600.0,0.02354933]
[1732804153146,0.0017276,95605.0,95601.0,0.02354933]
[1732804153377,0.1046,95602.0,95597.0,0.01963479]
[1732804153593,0.0017232,95604.0,95598.0,0.18546495]
[1732804153809,0.209199,95603.0,95599.0,0.03008728]
[1732804154043,0.104601,95601.0,95600.0,0.03008728]
[1732804154278,0.0017232,95604.0,95600.0,0.03008728]
[1732804154525,0.0017232,95604.0,95601.0,0.03008728]
[1732804154741,0.0017232,95604.0,95603.0,0.104599]
[1732804154986,0.0017232,95604.0,95603.0,0.10284521]
[1732804155222,0.16554413,95609.0,95603.0,0.13293225]
[1732804155653,0.16554413,95609.0,95604.0,0.03008704]
[1732804155863,0.104597,95605.0,95602.0,0.0185465]
[1732804156101,0.16554413,95609.0,95603.0,0.14524705]
[1732804156318,0.00404228,95618.0,95604.0,0.03008689]
[1732804156551,0.418366,95610.0,95605.0,0.03008689]
[1732804156786,0.00404228,95618.0,95603.0,0.01231495]
[1732804156787,0.104598,95604.0,95603.0,0.01231495]
[1732804157012,0.104598,95604.0,95603.0,0.04240187]
[1732804158112,0.104598,95604.0,95603.0,0.04840187]
[1732804158570,0.104598,95604.0,95603.0,0.05240187]
[1732804159226,0.104597,95605.0,95603.0,0.05240187]
[1732804159466,0.104597,95605.0,95604.0,0.05792658]
[1732804159971,0.209173,95615.0,95604.0,0.05792658]
[1732804160252,0.104595,95607.0,95605.0,0.03008692]
[1732804160497,0.0017282,95618.0,95611.0,0.10459]
[1732804160744,0.0017282,95618.0,95611.0,0.13467692]
[1732804160960,0.104585,95616.0,95611.0,0.03008692]
[1732804161168,0.209173,95615.0,95611.0,0.03008692]
[1732804161384,0.1063168,95612.0,95611.0,0.03008692]
[1732804161826,0.1814168,95612.0,95611.0,0.03208692]
[1732804162064,0.1814168,95612.0,95611.0,0.03208484]
[1732804162331,0.1814168,95612.0,95611.0,0.01900447]
[1732804162548,0.18373101,95612.0,95611.0,0.01900447]
[1732804162782,0.18373101,95612.0,95611.0,0.002]
[1732804163019,0.18373115,95612.0,95611.0,0.01700661]
[1732804163455,0.10863115,95612.0,95611.0,0.01900661]
[1732804163664,0.1063168,95612.0,95611.0,0.01700661]
[1732804163892,0.1063168,95612.0,95611.0,0.01900661]
[1732804164339,0.1063168,95612.0,95611.0,0.01700661]
[1732804164599,0.108631,95612.0,95611.0,0.01700661]
[1732804166230,0.108631,95612.0,95611.0,0.01900661]
[1732804166465,0.108631,95612.0,95611.0,0.01700661]
[1732804167375,0.108631,95612.0,95611.0,0.01800661]
[1732804168990,0.108631,95612.0,95611.0,0.01800673]
[1732804170413,0.108631,95612.0,95611.0,0.02772793]
[1732804171150,0.0017278,95612.0,95611.0,0.01800673]
[1732804171406,0.0017278,95612.0,95611.0,0.12259673]
[1732804171641,0.0017278,95612.0,95611.0,0.25861991]
[1732804171874,0.0017282,95618.0,95611.0,0.25861991]
[1732804171875,0.0017282,95618.0,95617.0,0.104583]
[1732804172118,0.0017282,95618.0,95617.0,0.20742821]
[1732804172360,0.0017282,95618.0,95617.0,0.21789389]
[1732804172605,0.0017282,95618.0,95617.0,0.22443494]
[1732804172860,0.0017282,95618.0,95617.0,0.31511765]
[1732804173320,0.0017282,95618.0,95617.0,0.21053465]
[1732804173551,0.0017282,95618.0,95617.0,0.23343494]
[1732804174069,0.0017282,95618.0,95617.0,0.22443494]
[1732804174303,0.0017282,95618.0,95617.0,0.23343494]
[1732804174537,0.0017282,95618.0,95617.0,0.24043494]
[1732804175895,0.0017282,95618.0,95617.0,0.13585194]
[1732804176126,0.0017282,95618.0,95617.0,0.15392285]
[1732804176553,0.0017282,95618.0,95617.0,0.25850585]
[1732804177472,0.0017282,95618.0,95612.0,0.17685185]
[1732804177747,0.0017282,95618.0,95617.0,0.20742821]
[1732804178208,0.0017282,95618.0,95617.0,0.43672821]
[1732804178470,0.0017278,95628.0,95627.0,0.104572]
[1732804178708,0.0017278,95628.0,95627.0,0.20741721]
[1732804178941,0.0017278,95628.0,95627.0,0.35741721]
[1732804179396,0.0017278,95628.0,95627.0,0.36741721]
[1732804179851,0.0017244,95642.0,95628.0,0.264571]
[1732804180106,0.0017244,95642.0,95628.0,0.56363999]
[1732804180347,0.0017244,95642.0,95628.0,0.47024767]
[1732804180566,0.0017244,95642.0,95628.0,0.25284521]
[1732804180784,0.10497,95629.0,95628.0,0.25284521]
[1732804181019,0.001,95628.0,95627.0,0.006]
[1732804181504,0.0004,95629.0,95627.0,0.20741721]
[1732804181728,0.0014,95629.0,95628.0,0.11184521]
[1732804181949,0.0024,95629.0,95628.0,0.18131823]
[1732804182394,0.0024,95629.0,95628.0,0.28588923]
[1732804183062,0.0014,95629.0,95628.0,0.27688923]
[1732804183273,0.0014,95629.0,95628.0,0.17231823]
[1732804183506,0.0014,95629.0,95628.0,0.27688923]
[1732804184018,0.0014,95629.0,95628.0,0.27988923]
[1732804184226,0.0014,95629.0,95628.0,0.27088923]
[1732804184227,0.0004,95629.0,95628.0,0.27088923]
[1732804184651,0.0014,95629.0,95628.0,0.27988923]
[1732804184865,0.001127,95631.0,95630.0,0.104569]
[1732804185074,0.001127,95631.0,95630.0,0.27842996]
[1732804186389,0.001127,95631.0,95630.0,0.17386096]
[1732804187057,0.105695,95631.0,95630.0,0.17386096]
[1732804187288,0.107695,95631.0,95630.0,0.11884521]
[1732804187520,0.003127,95631.0,95630.0,0.11884521]
[1732804188849,0.003127,95631.0,95630.0,0.016]
[1732804189089,0.107695,95631.0,95630.0,0.016]
[1732804191354,0.003127,95631.0,95630.0,0.11884521]
[1732804191607,0.003127,95631.0,95630.0,0.19377811]
[1732804194336,0.107695,95631.0,95630.0,0.19377811]
[1732804194556,0.107695,95631.0,95630.0,0.11884521]
[1732804195918,0.107695,95631.0,95630.0,0.016]
[1732804197158,0.11000851,95631.0,95630.0,0.016]
[1732804198067,0.11000851,95631.0,95611.0,0.0017222]
[1732804198068,0.104589,95612.0,95611.0,0.0017222]
[1732804200097,0.10690313,95612.0,95611.0,0.0017222]
[1732804200561,0.104589,95612.0,95611.0,0.0017222]
[1732804200771,0.104589,95612.0,95611.0,0.0087222]
[1732804200772,0.105589,95612.0,95611.0,0.0087222]
[1732804201020,0.001,95612.0,95611.0,0.12789923]
[1732804201267,0.001,95612.0,95611.0,0.10739898]
[1732804201491,0.104589,95612.0,95611.0,0.15423738]
[1732804201748,0.104589,95612.0,95611.0,0.10740169]
[1732804201987,0.104589,95612.0,95611.0,0.0137222]
[1732804202237,0.18240303,95612.0,95611.0,0.0137222]
[1732804202504,0.18240303,95612.0,95611.0,0.03851374]
[1732804202754,0.0755,95624.0,95611.0,0.0137222]
[1732804202999,0.104589,95612.0,95611.0,0.0137222]
[1732804203291,0.104589,95612.0,95611.0,0.0087222]
[1732804203527,0.104589,95612.0,95611.0,0.0017222]
[1732804203764,0.10690322,95612.0,95611.0,0.0057222]
[1732804204229,0.10690322,95612.0,95611.0,0.01766222]